fUSD/lending_fUSD_20240223
["ID","MTS","AMOUNT","RATE_DAILY","PERIOD"]
[314941783,1708691445275,-500.0,0.00027534,2]
[314941784,1708691445284,-500.0,0.00027534,2]
[314941785,1708691445294,-500.0,0.00027534,2]
[314941786,1708691445303,-661.63,0.00027534,2]
[314941787,1708691445312,-500.0,0.00027534,2]
[314941788,1708691445322,-830.11,0.00027534,2]
[314941789,1708691445333,-500.0,0.00027534,2]
[314941790,1708691445342,-966.94,0.00027534,2]
[314941791,1708691445351,-500.0,0.00027534,2]
[314941792,1708691445360,-500.0,0.00027534,2]
[314941793,1708691445369,-500.0,0.00027534,2]
[314941794,1708691445379,-2440.4,0.00027534,2]
[314941795,1708691445390,-500.0,0.00027534,2]
[314941796,1708691445406,-424.79454768,0.00027534,2]
[314941797,1708691445415,-500.0,0.00027534,2]
[314941798,1708691445425,-500.0,0.00027534,2]
[314941799,1708691445435,-500.0,0.00027534,2]
[314941800,1708691445445,-500.0,0.00027534,2]
[314941801,1708691445455,-500.0,0.00027534,2]
[314941802,1708691445464,-1120.79,0.00027534,2]
[314941803,1708691445473,-500.0,0.00027534,2]
[314941804,1708691445482,-1232.0,0.00027534,2]
[314941805,1708691445493,-500.0,0.00027534,2]
[314941806,1708691445502,-500.0,0.00027534,2]
[314941807,1708691445512,-500.0,0.00027534,2]
[314941808,1708691445521,-1278.68,0.00027534,2]
[314941809,1708691445531,-772.26,0.00027534,2]
[314941810,1708691445540,-500.0,0.00027534,2]
[314941811,1708691445549,-861.43,0.00027534,2]
[314941812,1708691445557,-500.0,0.00027534,2]
[314941813,1708691445568,-500.0,0.00027534,2]
[314941814,1708691445578,-774.07,0.00027534,2]
[314941815,1708691445588,-2030.05,0.00027534,2]
[314941816,1708691445597,-4219.83,0.00027534,2]
[314941817,1708691445606,-500.0,0.00027534,2]
[314941818,1708691445615,-702.02,0.00027534,2]
[314941819,1708691445624,-348.67135223,0.00027534,2]
[314941820,1708691445641,-151.32864777,0.00027534,2]
[314941821,1708691445650,-500.0,0.00027534,2]
[314941822,1708691445659,-500.0,0.00027534,2]
[314941823,1708691445668,-579.27,0.00027534,2]
[314941824,1708691445678,-500.0,0.00027534,2]
[314941825,1708691445688,-500.0,0.00027534,2]
[314941826,1708691445697,-1628.05,0.00027534,2]
[314941827,1708691445707,-500.0,0.00027534,2]
[314941828,1708691445716,-500.0,0.00027534,2]
[314941829,1708691445725,-703.53,0.00027534,2]
[314941830,1708691445735,-500.0,0.00027534,2]
[314941831,1708691445744,-1080.87,0.00027534,2]
[314941832,1708691445753,-500.0,0.00027534,2]
[314941833,1708691445763,-796.04,0.00027534,2]
[314941834,1708691445772,-500.0,0.00027534,2]
[314941835,1708691445781,-500.0,0.00027534,2]
[314941836,1708691445791,-500.0,0.00027534,2]
[314941838,1708691445800,-249.55731942,0.00027534,2]
[314941840,1708691445825,-274.47755073,0.00027534,2]
[314941841,1708691445837,-1078.08512985,0.00027534,2]
[314941842,1708691445847,-390.58724849,0.00027534,2]
[314941843,1708691445856,-297.29682666,0.00027534,2]
[314941845,1708691445867,-285.38317334,0.00027534,2]
[314941847,1708691445876,-1861.38,0.00027534,2]
[314941849,1708691445884,-253.07012665,0.00027534,2]
[314941850,1708691445893,-500.0,0.00027534,2]
[314941853,1708691445902,-573.42,0.00027534,2]
[314941854,1708691445912,-1205.61,0.00027534,2]
[314941856,1708691445921,-500.0,0.00027534,2]
[314941859,1708691445930,-500.0,0.00027534,2]
[314941860,1708691445940,-500.0,0.00027534,2]
[314941862,1708691445950,-1007.67,0.00027534,2]
[314941865,1708691445959,-607.11,0.00027534,2]
[314941866,1708691445969,-500.0,0.00027534,2]
[314941869,1708691445978,-915.01,0.00027534,2]
[314941870,1708691445987,-500.0,0.00027534,2]
[314941872,1708691445997,-702.81,0.00027534,2]
[314941875,1708691446006,-886.41,0.00027534,2]
[314941877,1708691446015,-2194.26,0.00027534,2]
[314941879,1708691446024,-500.0,0.00027534,2]
[314941880,1708691446033,-500.0,0.00027534,2]
[314941882,1708691446042,-428.23794756,0.00027534,2]
[314941885,1708691446053,-71.76205244,0.00027534,2]
[314941886,1708691446061,-500.0,0.00027534,2]
[314941888,1708691446070,-509.9,0.00027534,2]
[314941890,1708691446081,-235.27521379,0.00027534,2]
[314941893,1708691446093,-264.72478621,0.00027534,2]
[314941895,1708691446102,-246.23717109,0.00027534,2]
[314941897,1708691446113,-354.29681653,0.00027534,2]
[314941900,1708691446131,-186.23601238,0.00027534,2]
[314941902,1708691446139,-500.0,0.00027534,2]
[314941904,1708691446148,-399.18219586,0.00027534,2]
[314941926,1708691446591,-500.0,0.00027397,2]
[314941927,1708691446601,-100.81780414,0.00027534,2]
[314941928,1708691446610,-1189.9,0.00027534,2]
[314941929,1708691446620,-566.5,0.00027534,2]
[314941930,1708691446629,-4384.33,0.00027534,2]
[314941931,1708691446638,-500.0,0.00027534,2]
[314941932,1708691446648,-500.0,0.00027534,2]
[314941933,1708691446658,-1816.86,0.00027534,2]
[314941934,1708691446667,-526.49,0.00027534,2]
[314941935,1708691446676,-1526.02,0.00027534,2]
[314941936,1708691446686,-500.0,0.00027534,2]
[314941937,1708691446695,-500.0,0.00027534,2]
[314941938,1708691446704,-1388.33,0.00027534,2]
[314941939,1708691446714,-2474.45,0.00027534,2]
[314941940,1708691446723,-500.0,0.00027534,2]
[314941941,1708691446732,-500.0,0.00027534,2]
[314941942,1708691446741,-272.80079618,0.00027534,2]
[314941943,1708691446750,-500.0,0.00027534,2]
[314941944,1708691446759,-533.86,0.00027534,2]
[314941945,1708691446768,-1499.64139967,0.00027534,2]
[314941946,1708691446780,-692.22583235,0.00027534,2]
[314941947,1708691446791,-3138.04276798,0.00027534,2]
[314941948,1708691446801,-632.58,0.00027534,2]
[314941949,1708691446810,-500.0,0.00027534,2]
[314941950,1708691446819,-500.0,0.00027534,2]
[314941951,1708691446829,-500.0,0.00027534,2]
[314941952,1708691446838,-500.0,0.00027534,2]
[314941953,1708691446848,-503.34,0.00027534,2]
[314941954,1708691446857,-970.3,0.00027534,2]
[314941955,1708691446867,-661.23,0.00027534,2]
[314941956,1708691446876,-500.0,0.00027534,2]
[314941957,1708691446885,-500.0,0.00027534,2]
[314941958,1708691446895,-1854.49,0.00027534,2]
[314941959,1708691446904,-500.0,0.00027534,2]
[314941960,1708691446913,-500.0,0.00027534,2]
[314941961,1708691446922,-500.0,0.00027534,2]
[314941962,1708691446930,-500.0,0.00027534,2]
[314941963,1708691446940,-500.0,0.00027534,2]
[314941964,1708691446949,-500.0,0.00027534,2]
[314941965,1708691446958,-500.0,0.00027534,2]
[314941966,1708691446967,-557.39,0.00027534,2]
[314941967,1708691446976,-500.0,0.00027534,2]
[314941968,1708691446985,-972.27,0.00027534,2]
[314941969,1708691446994,-873.84,0.00027534,2]
[314941970,1708691447003,-2756.03,0.00027534,2]
[314941971,1708691447012,-409.81304417,0.00027534,2]
[314941972,1708691447022,-500.0,0.00027534,2]
[314941973,1708691447034,-1077.76,0.00027534,2]
[314941974,1708691447046,-500.0,0.00027534,2]
[314941975,1708691447055,-1260.77927464,0.00027534,2]
[314941976,1708691447068,-144.58072536,0.00027534,2]
[314941977,1708691447079,-500.0,0.00027534,2]
[314941978,1708691447088,-500.0,0.00027534,2]
[314941979,1708691447098,-500.0,0.00027534,2]
[314941980,1708691447107,-833.0,0.00027534,2]
[314941981,1708691447117,-2513.22,0.00027534,2]
[314941982,1708691447126,-500.0,0.00027534,2]
[314941983,1708691447135,-500.0,0.00027534,2]
[314941984,1708691447145,-500.0,0.00027534,2]
[314941985,1708691447154,-359.79598064,0.00027534,2]
[314941986,1708691447179,-497.36401936,0.00027534,2]
[314941987,1708691447189,-500.0,0.00027534,2]
[314941988,1708691447199,-1291.5,0.00027534,2]
[314941989,1708691447208,-500.0,0.00027534,2]
[314941990,1708691447218,-514.89,0.00027534,2]
[314941991,1708691447228,-700.66,0.00027534,2]
[314941992,1708691447237,-500.0,0.00027534,2]
[314941993,1708691447247,-2031.36,0.00027534,2]
[314941994,1708691447257,-500.0,0.00027534,2]
[314941995,1708691447266,-1009.63,0.00027534,2]
[314941996,1708691447276,-500.0,0.00027534,2]
[314941997,1708691447286,-516.55,0.00027534,2]
[314941998,1708691447295,-500.0,0.00027534,2]
[314941999,1708691447304,-500.0,0.00027534,2]
[314942000,1708691447314,-692.0,0.00027534,2]
[314942001,1708691447323,-500.0,0.00027534,2]
[314942002,1708691447332,-1085.28,0.00027534,2]
[314942003,1708691447342,-2188.23,0.00027534,2]
[314942004,1708691447351,-500.0,0.00027534,2]
[314942005,1708691447360,-592.24,0.00027534,2]
[314942006,1708691447369,-838.28,0.00027534,2]
[314942007,1708691447378,-500.0,0.00027534,2]
[314942008,1708691447387,-3195.13,0.00027534,2]
[314942009,1708691447397,-3378.46,0.00027534,2]
[314942010,1708691447407,-500.0,0.00027534,2]
[314942011,1708691447418,-587.56,0.00027534,2]
[314942012,1708691447427,-2460.31,0.00027534,2]
[314942013,1708691447437,-826.6,0.00027534,2]
[314942014,1708691447446,-500.0,0.00027534,2]
[314942015,1708691447457,-500.0,0.00027534,2]
[314942016,1708691447466,-1648.46,0.00027534,2]
[314942017,1708691447476,-500.0,0.00027534,2]
[314942018,1708691447486,-500.0,0.00027534,2]
[314942019,1708691447496,-536.91,0.00027534,2]
[314942020,1708691447506,-500.0,0.00027534,2]
[314942021,1708691447515,-3457.82,0.00027534,2]
[314942022,1708691447525,-500.0,0.00027534,2]
[314942023,1708691447534,-500.0,0.00027534,2]
[314942024,1708691447543,-661.28,0.00027534,2]
[314942025,1708691447553,-500.0,0.00027534,2]
[314942026,1708691447562,-500.0,0.00027534,2]
[314942027,1708691447572,-816.69,0.00027534,2]
[314942028,1708691447582,-500.0,0.00027534,2]
[314942029,1708691447591,-1895.05,0.00027534,2]
[314942030,1708691447602,-500.0,0.00027534,2]
[314942031,1708691447611,-177.17553529,0.00027534,2]
[314942032,1708691447621,-2058.22,0.00027534,2]
[314942033,1708691447630,-500.0,0.00027534,2]
[314942034,1708691447639,-500.0,0.00027534,2]
[314942035,1708691447648,-500.0,0.00027534,2]
[314942036,1708691447658,-500.0,0.00027534,2]
[314942037,1708691447668,-3825.2,0.00027534,2]
[314942038,1708691447678,-1955.25,0.00027534,2]
[314942039,1708691447688,-500.0,0.00027534,2]
[314942040,1708691447697,-1186.81,0.00027556,2]
[314942041,1708691447706,-2682.69787793,0.00027571,2]
[314942042,1708691447717,-171.69564993,0.00027571,2]
[314942043,1708691447727,-150.0,0.00027598,2]
[314942044,1708691447738,-170.52878158,0.00027599,2]
[314942045,1708691447748,-645.2774114,0.00027636,3]
[314942046,1708691447758,-500.0,0.0002767,2]
[314942047,1708691447767,-500.0,0.00027671,2]
[314942048,1708691447776,-500.0,0.00027671,2]
[314942049,1708691447785,-500.0,0.00027671,2]
[314942050,1708691447794,-500.0,0.00027671,2]
[314942051,1708691447804,-500.0,0.00027671,2]
[314942052,1708691447813,-493.32435772,0.00027671,2]
[314942053,1708691447824,-500.0,0.00027671,2]
[314942054,1708691447835,-500.0,0.00027671,2]
[314942055,1708691447844,-549.02191305,0.00027671,2]
[314942056,1708691447854,-621.96337416,0.00027671,2]
[314942057,1708691447863,-500.0,0.00027671,2]
[314942058,1708691447872,-556.58,0.00027671,2]
[314942059,1708691447881,-500.0,0.00027671,2]
[314942060,1708691447890,-500.0,0.00027671,2]
[314942061,1708691447899,-500.0,0.00027671,2]
[314942062,1708691447908,-526.85,0.00027671,2]
[314942063,1708691447917,-429.96086093,0.00027671,2]
[314942064,1708691447926,-500.0,0.00027671,2]
[314942065,1708691447935,-680.43,0.00027671,2]
[314942066,1708691447944,-500.0,0.00027671,2]
[314942067,1708691447953,-500.0,0.00027671,2]
[314942068,1708691447962,-500.0,0.00027671,2]
[314942069,1708691447971,-500.0,0.00027671,2]
[314942070,1708691447980,-530.18586615,0.00027671,2]
[314942071,1708691447989,-163.64622084,0.00027671,2]
[314942072,1708691447997,-500.0,0.00027671,2]
[314942073,1708691448006,-500.0,0.00027671,2]
[314942074,1708691448016,-518.64,0.00027671,2]
[314942075,1708691448025,-300.41510846,0.00027671,2]
[314942076,1708691448034,-500.0,0.00027671,2]
[314942077,1708691448043,-500.0,0.00027671,2]
[314942078,1708691448052,-500.0,0.00027671,2]
[314942079,1708691448061,-233.04925048,0.00027671,2]
[314942080,1708691448070,-500.0,0.00027671,2]
[314942081,1708691448079,-155.7018601,0.00027671,2]
[314942082,1708691448087,-500.0,0.00027671,2]
[314942083,1708691448096,-500.0,0.00027671,2]
[314942084,1708691448105,-500.0,0.00027671,2]
[314942085,1708691448113,-510.19,0.00027671,2]
[314942086,1708691448123,-500.0,0.00027671,2]
[314942087,1708691448132,-500.0,0.00027671,2]
[314942088,1708691448141,-500.0,0.00027671,2]
[314942089,1708691448150,-500.0,0.00027671,2]
[314942090,1708691448158,-500.0,0.00027671,2]
[314942091,1708691448167,-500.0,0.00027671,2]
[314942092,1708691448177,-500.0,0.00027671,2]
[314942093,1708691448185,-500.0,0.00027671,2]
[314942094,1708691448194,-500.0,0.00027671,2]
[314942095,1708691448203,-500.0,0.00027671,2]
[314942096,1708691448212,-500.0,0.00027671,2]
[314942097,1708691448221,-500.0,0.00027671,2]
[314942098,1708691448230,-500.0,0.00027671,2]
[314942099,1708691448238,-500.0,0.00027671,2]
[314942100,1708691448248,-500.0,0.00027671,2]
[314942101,1708691448257,-500.0,0.00027671,2]
[314942102,1708691448266,-500.0,0.00027671,2]
[314942103,1708691448275,-500.0,0.00027671,2]
[314942104,1708691448283,-500.0,0.00027671,2]
[314942105,1708691448292,-500.0,0.00027671,2]
[314942106,1708691448301,-500.0,0.00027671,2]
[314942107,1708691448310,-500.0,0.00027671,2]
[314942108,1708691448319,-500.0,0.00027671,2]
[314942109,1708691448329,-208.99604179,0.00027671,2]
[314942110,1708691448338,-500.0,0.00027671,2]
[314942111,1708691448347,-500.0,0.00027671,2]
[314942112,1708691448356,-500.0,0.00027671,2]
[314942113,1708691448365,-500.0,0.00027671,2]
[314942114,1708691448374,-500.0,0.00027671,2]
[314942115,1708691448383,-500.0,0.00027671,2]
[314942116,1708691448392,-500.0,0.00027671,2]
[314942117,1708691448401,-500.0,0.00027671,2]
[314942118,1708691448411,-500.0,0.00027671,2]
[314942119,1708691448420,-500.0,0.00027671,2]
[314942120,1708691448429,-500.0,0.00027671,2]
[314942121,1708691448439,-500.0,0.00027671,2]
[314942122,1708691448448,-500.0,0.00027671,2]
[314942123,1708691448457,-500.0,0.00027671,2]
[314942124,1708691448466,-500.0,0.00027671,2]
[314942125,1708691448475,-500.0,0.00027671,2]
[314942126,1708691448485,-500.0,0.00027671,2]
[314942127,1708691448494,-500.0,0.00027671,2]
[314942128,1708691448503,-500.0,0.00027671,2]
[314942129,1708691448512,-500.0,0.00027671,2]
[314942130,1708691448521,-500.0,0.00027671,2]
[314942131,1708691448530,-500.0,0.00027671,2]
[314942132,1708691448539,-150.0,0.00027671,2]
[314942133,1708691448548,-500.0,0.00027671,2]
[314942134,1708691448557,-500.0,0.00027671,2]
[314942135,1708691448567,-500.0,0.00027671,2]
[314942136,1708691448577,-500.0,0.00027671,2]
[314942137,1708691448588,-549.89442875,0.00027671,2]
[314942138,1708691448597,-500.0,0.00027671,2]
[314942139,1708691448607,-500.0,0.00027671,2]
[314942140,1708691448616,-500.0,0.00027671,2]
[314942141,1708691448625,-866.95,0.00027671,2]
[314942142,1708691448634,-500.0,0.00027671,2]
[314942143,1708691448643,-500.0,0.00027671,2]
[314942144,1708691448652,-500.0,0.00027671,2]
[314942145,1708691448661,-500.0,0.00027671,2]
[314942146,1708691448670,-500.0,0.00027671,2]
[314942147,1708691448680,-712.13,0.00027671,2]
[314942148,1708691448689,-500.0,0.00027671,2]
[314942149,1708691448697,-500.0,0.00027671,2]
[314942150,1708691448706,-500.0,0.00027671,2]
[314942151,1708691448716,-592.17,0.00027671,2]
[314942152,1708691448724,-500.0,0.00027671,2]
[314942153,1708691448733,-500.0,0.00027671,2]
[314942154,1708691448743,-500.0,0.00027671,2]
[314942155,1708691448751,-500.0,0.00027671,2]
[314942156,1708691448760,-500.0,0.00027671,2]
[314942157,1708691448770,-500.0,0.00027671,2]
[314942158,1708691448778,-744.85,0.00027671,2]
[314942159,1708691448787,-500.0,0.00027671,2]
[314942160,1708691448797,-500.0,0.00027671,2]
[314942161,1708691448806,-500.0,0.00027671,2]
[314942162,1708691448815,-1000.0,0.00027671,7]
[314942163,1708691448824,-500.0,0.00027671,2]
[314942164,1708691448835,-500.0,0.00027671,2]
[314942165,1708691448844,-500.0,0.00027671,2]
[314942166,1708691448853,-500.0,0.00027671,2]
[314942167,1708691448862,-581.17,0.00027671,2]
[314942168,1708691448871,-500.0,0.00027671,2]
[314942169,1708691448880,-500.0,0.00027671,2]
[314942170,1708691448889,-500.0,0.00027671,2]
[314942171,1708691448898,-500.0,0.00027671,2]
[314942172,1708691448907,-500.0,0.00027671,2]
[314942173,1708691448917,-1636.85,0.00027671,2]
[314942174,1708691448926,-500.0,0.00027671,2]
[314942175,1708691448935,-500.0,0.00027671,2]
[314942176,1708691448944,-500.0,0.00027671,2]
[314942177,1708691448953,-500.0,0.00027671,2]
[314942178,1708691448962,-500.0,0.00027671,2]
[314942179,1708691448971,-618.55,0.00027671,2]
[314942180,1708691448980,-1133.5,0.00027671,2]
[314942181,1708691448989,-651.3,0.00027671,2]
[314942182,1708691448998,-7441.6,0.00027671,2]
[314942183,1708691449007,-500.0,0.00027671,2]
[314942184,1708691449016,-500.0,0.00027671,2]
[314942185,1708691449025,-500.0,0.00027671,2]
[314942186,1708691449035,-170.61443823,0.00027671,2]
[314942187,1708691449044,-661.63,0.00027671,2]
[314942188,1708691449053,-500.0,0.00027671,2]
[314942189,1708691449062,-830.11,0.00027671,2]
[314942190,1708691449071,-500.0,0.00027671,2]
[314942191,1708691449081,-966.94,0.00027671,2]
[314942192,1708691449090,-500.0,0.00027671,2]
[314942193,1708691449099,-500.0,0.00027671,2]
[314942194,1708691449107,-500.0,0.00027671,2]
[314942195,1708691449116,-2440.4,0.00027671,2]
[314942196,1708691449125,-208.67004242,0.00027671,2]
[314942197,1708691449134,-500.0,0.00027671,2]
[314942198,1708691449144,-500.0,0.00027671,2]
[314942199,1708691449154,-500.0,0.00027671,2]
[314942200,1708691449266,-500.0,0.00027671,2]
[314942201,1708691449291,-500.0,0.00027671,2]
[314942202,1708691449302,-1120.79,0.00027671,2]
[314942203,1708691449312,-500.0,0.00027671,2]
[314942204,1708691449322,-1232.0,0.00027671,2]
[314942205,1708691449334,-500.0,0.00027671,2]
[314942206,1708691449346,-500.0,0.00027671,2]
[314942207,1708691449355,-500.0,0.00027671,2]
[314942208,1708691449365,-1278.68,0.00027671,2]
[314942209,1708691449374,-772.26,0.00027671,2]
[314942210,1708691449384,-500.0,0.00027671,2]
[314942211,1708691449394,-861.43,0.00027671,2]
[314942212,1708691449404,-500.0,0.00027671,2]
[314942213,1708691449416,-500.0,0.00027671,2]
[314942214,1708691449427,-774.07,0.00027671,2]
[314942215,1708691449437,-2030.05,0.00027671,2]
[314942216,1708691449447,-4219.83,0.00027671,2]
[314942217,1708691449457,-500.0,0.00027671,2]
[314942218,1708691449467,-702.02,0.00027671,2]
[314942219,1708691449477,-500.0,0.00027671,2]
[314942220,1708691449486,-500.0,0.00027671,2]
[314942221,1708691449496,-500.0,0.00027671,2]
[314942222,1708691449506,-579.27,0.00027671,2]
[314942223,1708691449516,-500.0,0.00027671,2]
[314942224,1708691449526,-500.0,0.00027671,2]
[314942225,1708691449535,-1628.05,0.00027671,2]
[314942226,1708691449544,-500.0,0.00027671,2]
[314942227,1708691449553,-500.0,0.00027671,2]
[314942228,1708691449563,-703.53,0.00027671,2]
[314942229,1708691449573,-500.0,0.00027671,2]
[314942230,1708691449585,-1080.87,0.00027671,2]
[314942231,1708691449594,-500.0,0.00027671,2]
[314942232,1708691449604,-796.04,0.00027671,2]
[314942233,1708691449614,-500.0,0.00027671,2]
[314942234,1708691449623,-500.0,0.00027671,2]
[314942235,1708691449633,-500.0,0.00027671,2]
[314942236,1708691449643,-1602.12,0.00027671,2]
[314942237,1708691449653,-582.68,0.00027671,2]
[314942238,1708691449662,-1861.38,0.00027671,2]
[314942239,1708691449672,-500.0,0.00027671,2]
[314942240,1708691449683,-573.42,0.00027671,2]
[314942241,1708691449692,-1205.61,0.00027671,2]
[314942242,1708691449702,-500.0,0.00027671,2]
[314942243,1708691449712,-500.0,0.00027671,2]
[314942244,1708691449727,-500.0,0.00027671,2]
[314942245,1708691449737,-1007.67,0.00027671,2]
[314942246,1708691449747,-607.11,0.00027671,2]
[314942247,1708691449757,-500.0,0.00027671,2]
[314942248,1708691449767,-915.01,0.00027671,2]
[314942249,1708691449777,-500.0,0.00027671,2]
[314942250,1708691449787,-702.81,0.00027671,2]
[314942251,1708691449798,-2194.26,0.00027671,2]
[314942252,1708691449808,-886.41,0.00027671,2]
[314942253,1708691449819,-500.0,0.00027671,2]
[314942254,1708691449830,-500.0,0.00027671,2]
[314942255,1708691449840,-500.0,0.00027671,2]
[314942256,1708691449850,-500.0,0.00027671,2]
[314942257,1708691449860,-509.9,0.00027671,2]
[314942258,1708691449870,-500.0,0.00027671,2]
[314942259,1708691449882,-786.77,0.00027671,2]
[314942260,1708691449893,-500.0,0.00027671,2]
[314942261,1708691449903,-500.0,0.00027671,2]
[314942262,1708691449913,-1189.9,0.00027671,2]
[314942263,1708691449923,-566.5,0.00027671,2]
[314942264,1708691449932,-4384.33,0.00027671,2]
[314942265,1708691449942,-235.37,0.00027671,2]
[314942266,1708691449953,-500.0,0.00027671,2]
[314942267,1708691449963,-1816.86,0.00027671,2]
[314942268,1708691449973,-526.49,0.00027671,2]
[314942269,1708691449982,-1526.02,0.00027671,2]
[314942270,1708691449992,-500.0,0.00027671,2]
[314942271,1708691450002,-500.0,0.00027671,2]
[314942272,1708691450012,-1388.33,0.00027671,2]
[314942273,1708691450022,-500.0,0.00027671,2]
[314942274,1708691450032,-2474.45,0.00027671,2]
[314942275,1708691450041,-500.0,0.00027671,2]
[314942276,1708691450051,-500.0,0.00027671,2]
[314942277,1708691450061,-533.86,0.00027671,2]
[314942278,1708691450071,-5329.91,0.00027671,2]
[314942279,1708691450080,-632.58,0.00027671,2]
[314942280,1708691450090,-500.0,0.00027671,2]
[314942281,1708691450100,-500.0,0.00027671,2]
[314942282,1708691450110,-502.28056716,0.00027671,2]
[314942283,1708691450120,-500.0,0.00027671,2]
[314942284,1708691450129,-503.34,0.00027671,2]
[314942285,1708691450139,-970.3,0.00027671,2]
[314942286,1708691450149,-661.23,0.00027671,2]
[314942287,1708691450163,-500.0,0.00027671,2]
[314942288,1708691450173,-500.0,0.00027671,2]
[314942289,1708691450184,-1854.49,0.00027671,2]
[314942290,1708691450194,-500.0,0.00027671,2]
[314942291,1708691450204,-500.0,0.00027671,2]
[314942292,1708691450214,-500.0,0.00027671,2]
[314942293,1708691450224,-500.0,0.00027671,2]
[314942294,1708691450235,-500.0,0.00027671,2]
[314942295,1708691450245,-500.0,0.00027671,2]
[314942296,1708691450256,-500.0,0.00027671,2]
[314942297,1708691450267,-557.39,0.00027671,2]
[314942298,1708691450277,-500.0,0.00027671,2]
[314942299,1708691450288,-972.27,0.00027671,2]
[314942300,1708691450299,-873.84,0.00027671,2]
[314942301,1708691450309,-2756.03,0.00027671,2]
[314942302,1708691450321,-500.0,0.00027671,2]
[314942303,1708691450332,-1077.76,0.00027671,2]
[314942304,1708691450343,-500.0,0.00027671,2]
[314942305,1708691450354,-1405.36,0.00027671,2]
[314942306,1708691450365,-500.0,0.00027671,2]
[314942307,1708691450375,-500.0,0.00027671,2]
[314942308,1708691450387,-500.0,0.00027671,2]
[314942309,1708691450399,-833.0,0.00027671,2]
[314942310,1708691450411,-2513.22,0.00027671,2]
[314942311,1708691450421,-500.0,0.00027671,2]
[314942312,1708691450431,-500.0,0.00027671,2]
[314942313,1708691450441,-500.0,0.00027671,2]
[314942314,1708691450452,-857.16,0.00027671,2]
[314942315,1708691450462,-500.0,0.00027671,2]
[314942316,1708691450471,-1291.5,0.00027671,2]
[314942317,1708691450482,-500.0,0.00027671,2]
[314942318,1708691450493,-514.89,0.00027671,2]
[314942319,1708691450502,-700.66,0.00027671,2]
[314942320,1708691450512,-500.0,0.00027671,2]
[314942321,1708691450521,-2031.36,0.00027671,2]
[314942322,1708691450532,-500.0,0.00027671,2]
[314942323,1708691450541,-423.88639442,0.00027671,2]
[314942324,1708691450907,-585.74360558,0.00027671,2]
[314942325,1708691450917,-500.0,0.00027671,2]
[314942326,1708691450927,-516.55,0.00027671,2]
[314942327,1708691450937,-500.0,0.00027671,2]
[314942328,1708691450946,-500.0,0.00027671,2]
[314942329,1708691450956,-692.0,0.00027671,2]
[314942330,1708691450965,-500.0,0.00027671,2]
[314942331,1708691450974,-1085.28,0.00027671,2]
[314942332,1708691450985,-2188.23,0.00027671,2]
[314942333,1708691450994,-500.0,0.00027671,2]
[314942334,1708691451003,-592.24,0.00027671,2]
[314942335,1708691451013,-838.28,0.00027671,2]
[314942336,1708691451022,-500.0,0.00027671,2]